{"text_format":"1","workbook":"xlsx","n_sheets":7,"sheets":["Q_Volumenstrom","Direkt mit FU je Pumpe","Direkt-Kaskade ohne FU ","Indirekt mit FU je Pumpe","Indirekt-Kaskade ohne FU","Nachspeiseventil-Vorlagebehälte","Druckbehälter"],"not_rendered":{"charts":0,"images":12,"macros":1,"external_links":0,"defined_names":18,"comments":7,"pivot_tables":0},"unopened":[],"bounds":{"document_bytes":16777216,"sheet_cells":100000,"rows_first":2000,"rows_last":500,"rows_between":2000,"halvings":0,"cell_chars":16384,"cell_head_chars":4096},"cells_cut":0,"cells_raw":0,"read":"whole","date_system":"1900"}

{"sheet":"Q_Volumenstrom","index":0,"n_rows":46,"n_cols":14,"rows_kept":46,"cut":false,"hidden":false,"merged":[[39,2,40,3],[3,1,4,2],[35,1,36,2],[37,1,37,2],[6,1,6,2],[7,1,7,2],[8,1,8,2],[33,1,33,2],[32,1,32,2],[0,7,1,8],[0,6,1,6],[0,2,0,5],[1,2,1,5],[30,1,30,2],[25,1,25,8],[3,3,4,3],[3,4,4,4],[23,1,23,2],[18,1,18,2],[9,1,9,2],[10,1,10,2],[11,1,11,2],[12,1,12,2],[222,3,222,5],[221,1,221,2],[222,1,222,2],[221,3,221,5],[214,1,214,8],[35,10,36,10],[35,4,36,4],[35,7,36,7],[35,9,36,9],[35,3,36,3],[35,5,36,5],[35,6,36,6],[33,9,33,10],[29,1,29,2],[13,1,13,2],[14,1,14,2],[16,1,16,2],[17,1,17,2],[19,1,19,2],[20,1,20,2],[21,1,21,2],[22,1,22,2],[24,1,24,8],[15,1,15,2]]}
[null,"Projekt",null,null,null,null,{"$f":"TODAY()","v":"2023-07-13"}]
[null,"Ort"]
[]
[null,"Spitzenvolumenstrom inklusive Dauerdurchfluss QD",null,null,"[m3/h]"]
[null,null,null,null,null,null,null,null,null,null,0]
[]
[null,"Art der Entnahmestelle",null,"DN","Mindest-fließdruck pFl,min                                                         MPa","Brechnungs-durchfluss   VR  kalt                    l/s","Brechnungs-durchfluss   VR warm                     l/s","Anzahl","Summen      QT                          l/s"]
[null,"Auslaufventil ohne Strahlreglera",null,15,0.05,0.3,null,null,{"$f":"IF(H8=\"\",\"\",F8*H8)","v":""}]
[null,null,null,20,0.05,0.5,null,null,{"$f":"IF(H9=\"\",\"\",F9*H9)","v":""}]
[null,null,null,25,0.05,1,null,null,{"$f":"IF(H10=\"\",\"\",F10*H10)","v":""}]
[null,"mit Strahlregler",null,10,0.1,0.15,null,null,{"$f":"IF(H11=\"\",\"\",F11*H11)","v":""}]
[null,null,null,15,0.1,0.15,null,null,{"$f":"IF(H12=\"\",\"\",F12*H12)","v":""}]
[null,"Mischarmaturen b,c für Duschwannen",null,15,0.1,0.15,0.14499999999999999,null,{"$f":"IF(H13=\"\",\"\",(F13*H13)+(G13*H13))","v":""}]
[null,"Badewannen",null,15,0.1,0.15,0.15,null,{"$f":"IF(H14=\"\",\"\",(F14*H14)+(G14*H14))","v":""}]
[null,"Küchenspülen",null,15,0.1,7.0000000000000007E-2,7.0000000000000007E-2,null,{"$f":"IF(H15=\"\",\"\",(F15*H15)+(G15*H15))","v":""}]
[null,"Waschbecken",null,15,0.1,7.0000000000000007E-2,7.0000000000000007E-2,null,{"$f":"IF(H16=\"\",\"\",(F16*H16)+(G16*H16))","v":""}]
[null,"Sitzwaschbecken",null,15,0.1,7.0000000000000007E-2,7.0000000000000007E-2,null,{"$f":"IF(H17=\"\",\"\",(F17*H17)+(G17*H17))","v":""}]
[null,"Maschinen für Haushalt Wachmaschienen nach DIN EN 60456",null,15,0.05,0.15,null,null,{"$f":"IF(H18=\"\",\"\",F18*H18)","v":""}]
[null,"Geschirrspülmachinen nach DIN EN 50242",null,15,0.05,0.15,null,null,""]
[null,"WC-Becken und Urinale Füllventil für Spülkasten nach DIN EN 14124",null,15,0.05,0.13,null,null,""]
[null,"Druckspüler(manuell) für Urinale nach DIN EN 12541",null,15,0.1,0.3,null,null,""]
[null,"Druckspüler (elekronisch) für Urinal nach                    DIN EN 15091",null,15,0.1,0.3,null,null,""]
[null,"Druckspüler WC",null,20,0.12,1,null,null,""]
[null,"Dauerzufluß z.B. Benutzung länger als 15 min. (Gartensprenkler) in l/s",null,null,null,null,"-","-",{"$f":"F24","v":0}]
[null,"Wichtige Hinweise:\nDie Hersteller müssen den Mindestfließdruck und die Berechnungsdurchflüsse auf der Kalt- und auf der Warmwasser-seite (bei Mischarmaturen) angeben. Grundsätzlich sind für die Bemessung der Rohrdurchmesser die Angaben der Hersteller zu berücksichtigen, die zum Teil erheblich von den in dieser Tabelle angegebenen Werten abweichen können. Dabei ist wie folgt vorzugehen:\nLiegen die Herstellerangaben für den Mindestfließdruck und den Berechnungsdurchfluss unter den in der Tabelle genannten Werten, gibt es zwei Optionen:\nIst die Trinkwasser-Installation aus hygienischen und wirtschaftlichen Gründen für die geringeren Werte zu bemessen, muss dieses Vorgehen mit dem Bauherrn vereinbart und die Auslegungsvoraussetzungen für die Entnahmestellen (Mindestfließdruck, Berechnungsdurchfluss) in die Bemessung aufgenommen werden.\nWird die Trinkwasser-Installation nicht für die geringeren Werte bemessen, sind die Tabellenwerte zu berücksichtigen.\nLiegen die Herstellerangaben über den in der Tabelle genannten Werten, muss die Trinkwasser-Installation mit den Herstellerwerten bemessen werden."]
[null,"a Ohne angeschlossene Apparate (z. B. Rasensprenger).\nb Der angegebene Berechnungsdurchfluss ist für den kalt- und den warmwasserseitigen Anschluss in Rechnung zu stellen.\nc Eckventile für z. B. Waschtischarmaturen und S-Anschlüsse für z. B. Dusch- und Badewannenarmaturen sind als Einzelwiderstände oder im Mindestfließdruck der Entnahmearmatur zu berücksichtigen."]
[null,null,null,null,null,"Summendurchfluß VR",null,{"$f":"SUM(I8:I23)","v":0},"[l/s]"]
[null,"Spitzendurchfluß QD anhand der Art der  Gebäudenutzung"]
[null,"(Für andere Gebäudearten müssen individuelle Spitzenvolumenströme festgelegt werden)"]
[null,"Gebäudeart",null,"a","b","c",null,null,"Auswahl mit (x)",null,null,null,"DN","m3/h"]
[null,"Wohngebäude",null,1.48,0.19,0.94,{"$f":"IF($H$27=0,0,($D31*(($H$27)^$E31))-$F31)","v":0},"l/s",null,null,null,null,25,3.5]
[null,"Bettenhaus im Krankenhaus",null,0.75,0.44,0.18,0,"l/s",null,null,null,null,32,5.8]
[null,"Hotel",null,0.7,0.48,0.13,0,"l/s",null,null,null,null,40,9]
[null,"Schule",null,0.91,0.31,0.38,0,"l/s",null,null,null,null,50,14]
[null,"Verwaltungsgebäude",null,0.91,0.31,0.38,0,"l/s",null,null,null,null,65,24]
[null,"Einrichtung für betreutes Wohnen, Seniorenheim",null,1.48,0.19,0.94,0,"l/s",null,null,null,null,80,36]
[null,null,null,null,null,null,null,null,null,null,null,null,100,57]
[null,"Pflegeheim",null,1.4,0.14000000000000001,0.92,{"$f":"IF($H$27=0,0,($D38*(($H$27)^$E38))-$F38)","v":0},"l/s",null,null,null,null,125,88]
[null,null,null,null,null,null,null,null,null,null,null,null,150,127]
[null,null,"Spitzenvolumenstrom inklusive Dauerdurchfluss QD",null,{"$f":"IFERROR(((IF(I31=\"x\",G31,IF(I32=\"x\",G32,IF(I33=\"x\",G33,IF(I34=\"x\",G34,IF(I35=\"x\",G35,IF(I36=\"x\",G36,IF(I38=\"x\",G38,\"\"))))))))*3.6)+(I24*3.6),\"\")","v":""},"m3/h",null,null,null,null,null,null,200,226]
[null,null,null,null,null,null,null,null,null,null,null,null,250,353]
[null,null,null,null,null,null,null,null,null,null,null,null,300,509]
[null,"Empfohlene DN der Hausanschlußleitung mit max. 2 m/s Fließgeschwindigkeit",null,null,null,null,null,{"$f":"IF(M44=\"\",M46,M44)","v":""},"DN"]
[null,null,null,null,null,null,null,null,null,null,null,null,{"$f":"IF(D4=\"\",\"\",IF(D4<=N31,25,IF(D4<=N32,32,IF(D4<=N33,40,IF(D4<=N34,50,IF(D4<=N35,65,IF(D4<=N36,80,IF(D4<=N37,100,IF(D4<=N38,125,IF(D4<=N39,150,IF(D4<=N40,200,IF(D4<=N41,250,IF(D4<=N42,300,\"No Data\")))))))))))))","v":""}]
[]
[null,null,null,null,null,null,null,null,null,null,null,null,{"$f":"IF(E40=\"\",\"\",IF(E40<=N31,25,IF(E40<=N32,32,IF(E40<=N33,40,IF(E40<=N34,50,IF(E40<=N35,65,IF(E40<=N36,80,IF(E40<=N37,100,IF(E40<=N38,125,IF(E40<=N39,150,IF(E40<=N40,200,IF(E40<=N41,250,IF(E40<=N42,300,\"No Data\")))))))))))))","v":""}]

{"sheet":"Direkt mit FU je Pumpe","index":1,"n_rows":49,"n_cols":9,"rows_kept":49,"cut":false,"hidden":false,"merged":[[0,2,0,5],[0,6,1,6],[0,7,1,8],[1,2,1,5],[36,1,36,2],[36,3,36,5],[33,3,33,5],[34,3,34,5],[25,1,25,8],[33,1,33,2],[34,1,34,2],[35,1,35,2],[35,3,35,5],[29,1,31,2],[29,3,31,5],[32,1,32,2],[32,3,32,5]]}
[null,"Projekt",{"$f":"Q_Volumenstrom!C1","v":0},null,null,null,{"$f":"TODAY()","v":"2023-07-13"}]
[null,"Ort",{"$f":"Q_Volumenstrom!C2","v":0}]
[]
[null,"Anschlußart: Direkt alle Pumpen geregelt"]
[null,null,null,null,"pminFl[bar]"]
[]
[null,"pminFl[bar]","Mindestfließdruck an der Armatur, bei Mindestdurchfluß"]
[null,"pmax [bar]","Maximaler Vordruck (stat. Ruhedruck)"]
[null,"SPLN [bar]","Mindest-Versorgungsdruck"]
[null,"Hgeo[m]","Geo. Höhenunterschied "]
[null,"pvor[bar]","Fließdruck vor der Anlage bei QD"]
[null,null,null,null,"pnach[bar]",{"$f":"IF(C49=\"\",\"\",C49)","v":""}]
[null,null,null,0]
[null,null,null,null,null,null,null,"Hgeo[m]"]
[null,null,null,null,null,null,null,"Δpe[bar]",{"$f":"IF(I14=\"\",\"\",(9.81*999.6*I14)/100000)","v":""}]
[]
[]
[null,"QD [m3/h]",{"$f":"IF(Q_Volumenstrom!$D$4>0,Q_Volumenstrom!$D$4,Q_Volumenstrom!$E$40)","v":""}]
[]
[]
[]
[]
[]
[null,"pmax [bar]",null,"pvor [bar]"]
[null,"SPLN [bar]",null,{"$f":"IF(C24>=8,\"Druckminderer einplanen\",\"\")","v":""}]
[null,"Ein schwankender Zulaufdruck wird durch die in jeder Einzelpumpe integrierte Drehzahlregelung kompensiert. Dies gilt, solang die Druckschwankung nicht größer als die Differenz zwischen Sollwertdruck pnach und Nullförderhöhe H0 der Einzelpumpe bei Minimal-Drehzahl nmin ist. Ist die Druckschwankung größer, so ist vor der Anlage ein Druckminderventil zu installieren. Vordruck plus Nullförderhöhe der Pumpe darf 16 bar nicht übersteigen. Der Vordruck muss kleiner 10 bar sein sonst muß ein Druckminderer vorgesehen werden (wegen Drucktransmitter)."]
[null,"Nach DIN 1988- 500"]
[null,"Überschlägige Ermittlung der Druckverluste von Rohrleitungen und Armaturen"]
[]
[null,"Rohrleitungslänge Druckerhöhungsanlage bis hydraulische ungünstigster Entnahmestelle",null,"Mittleres Druckgefälle der Verbrauchsleitung"]
[]
[]
[null,"Σlnach",null,"Δp/l = (l*R+Z)nach/Σlnach"]
[null," [m]",null," [hpa/m]"]
[null,"≤ 30",null,20]
[null,"> 30 ≤80",null,15]
[null,"> 80",null,10]
[]
[null,null,"l[m]"]
[]
[null,null,"pVR+VA [bar]",{"$f":"IF(D39<=30,D35,IF(D39<=80,D36,IF(D39>80,D37)))*D39/1000","v":0},"Druckverlust der Rohrleitungen und Armaturen"]
[]
[null,null,"∆pApparate[bar]"]
[]
[null,"Einschaltdruck (der DEA)",null,null,null,"Förderdruck (der DEA Pumpen)"]
[]
[null,"pnach[bar]=Δpe+pminFL+pvr+var+∆pApparate",null,null,null,"Δpp[bar]=Δpe+pminFL+pvr+var+∆pApparate-pvor"]
[]
[null,"pnach [bar]",{"$f":"IFERROR(I15+F5+D41+D43,\"\")","v":""},null,null,"Δpp[bar] ",{"$f":"IFERROR(I15+F5+D41+D43-E24,\"\")","v":""}]

{"sheet":"Direkt-Kaskade ohne FU ","index":2,"n_rows":54,"n_cols":9,"rows_kept":54,"cut":false,"hidden":false,"merged":[[41,1,41,2],[41,3,41,5],[30,1,30,8],[34,1,36,2],[34,3,36,5],[37,1,37,2],[37,3,37,5],[38,1,38,2],[39,1,39,2],[39,3,39,5],[38,3,38,5],[0,2,0,5],[0,6,1,6],[0,7,1,8],[1,2,1,5],[40,1,40,2],[40,3,40,5]]}
[null,"Projekt",{"$f":"Q_Volumenstrom!C1","v":0},null,null,null,{"$f":"TODAY()","v":"2023-07-13"}]
[null,"Ort",{"$f":"Q_Volumenstrom!C2","v":0}]
[]
[null,"Anschlußart: Direkt; ungeregelte Pumpen (Kaskadensteuerung)"]
[null,null,null,null,"pminFl[bar]"]
[]
[]
[null,"pminFl[bar]","Mindestfließdruck an der Armatur, bei Mindestdurchfluß"]
[null,"pmax [bar]","Maximaler Vordruck (stat. Ruhedruck)"]
[null,"SPLN [bar]","Mindest-Versorgungsdruck"]
[null,"Hgeo[m]","Geo. Höhenunterschied "]
[null,"pvor[bar]","Fließdruck vor der Anlage bei QD"]
[null,null,null,null,null,null,null,"pnach[bar]",{"$f":"IF(C54=\"\",\"\",C54)","v":""}]
[]
[null,"QD [m3/h]",{"$f":"IF(Q_Volumenstrom!$D$4>0,Q_Volumenstrom!$D$4,Q_Volumenstrom!$E$40)","v":""},null,null,null,null,"Hgeo[m]"]
[null,null,null,null,null,null,null,"Δpe[bar]",{"$f":"IF(I15=\"\",\"\",(9.81*999.6*I15)/100000)","v":""}]
[]
[]
[]
[]
[]
[]
[]
[]
[null,"pmax [bar]",null,"pvor [bar]"]
[null,"SPLN [bar]",null,{"$f":"IF(C25>=8,\"Druckminderer einplanen\",\"\")","v":""}]
[]
[null,"Druckbehältergröße vor der Anlage, wenn bei abschalten aller Pumpen 0,5 m/s überschritten werden oder bei einer Pumpe 0,15 m/s"]
[null,"V Gesamt [l]",{"$f":"IF(C15=\"\",\"\",IF(C15<=7,300,IF(C15<=15,500,IF(C15>15,750,\"\"))))","v":""},null,"Druckeinstellung des Vordruckbehälters SPLN - 0,5 bar"]
[]
[null,"Sind Vordruckschwankungen zu erwarten die größer als 0,2 bis 0,3 bar sind ist ein Druckminderer einzuplanan, es ist sicherzustellen das bei einer positiven oder negativen Vordruckschwankung noch ein Schnittpunkt mit der Anlagekennlinie erreicht wird. Bis zu einem Vorduck von kleiner 10 bar muss  kein Druckminderer eingeplant werden (wegen Drucktransmitter).Vordruck plus Nullförderhöhe der Pumpe darf 16 bar nicht übersteigen.Die Anlage kann ohne Druckbehälter auf der Vordruckseite der Pumpen betrieben werden, wenn:\na) der durch das Ein- und Ausschalten jeder Pumpe oder Armatur der Druckerhöhungsanlage erzeugte\nmaximale Unterschied der Fließgeschwindigkeit in der Anschlussleitung und in der zur Druckerh\nöhungsanlage führenden Verbrauchsleitung unter 0,15 m/s liegt. Damit unzulässige Druckstöße auch\nbei Stromausfall vermieden werden, darf bei Ausfall aller Betriebspumpen der verursachte Unterschied in\nder Fließgeschwindigkeit 0,5 m/s in der Anschlussleitung und in der zur Druckerhöhungsanlage\nführenden Verbrauchsleitung nicht überschreiten;\noder\nb) sichergestellt ist, dass beim\n  Anlaufen der Pumpen der Mindest-Versorgungsdruck SPLN um nicht mehr als 50 % unterschritten\nwird und 100 kPa oder höher bleibt;\n  Abschalten der Pumpen der Druckanstieg  p2 nicht mehr als 100 kPa über dem zulässigen\nBetriebsdruck am abnehmerseitigen Ende der Anschlussleitung während der Betriebsruhe der\nDruckerhöhungsanlage liegt."]
[null,"Nach DIN 1988- 500"]
[null,"Überschlägige Ermittlung der Druckverluste von Rohrleitungen und Armaturen"]
[]
[null,"Rohrleitungslänge Druckerhöhungsanlage bis hydraulische ungünstigster Entnahmestelle",null,"Mittleres Druckgefälle der Verbrauchsleitung"]
[]
[]
[null,"Σlnach",null,"Δp/l = (l*R+Z)nach/Σlnach"]
[null," [m]",null," [hpa/m]"]
[null,"≤ 30",null,20]
[null,"> 30 ≤80",null,15]
[null,"> 80",null,10]
[]
[null,null,"l [m]"]
[]
[null,null,"pVR+VA [bar]",{"$f":"IF(D44<=30,D40,IF(D44<=80,D41,IF(D44>80,D42)))*D44/1000","v":0},"Druckverlust der Rohrleitungen und Armaturen"]
[]
[null,null,"∆pApparate[bar]"]
[]
[null,"Einschaltdruck (der DEA)",null,null,null,"Förderdruck (der DEA Pumpen)"]
[]
[null,"pnach[bar]=Δpe+pminFL+pvr+var+∆pApparate",null,null,null,"Δpp[bar]=Δpe+pminFL+pvr+var+∆pApparate-pvor"]
[]
[null,"pnach [bar]",{"$f":"IFERROR(I16+F5+D46+D48,\"\")","v":""},null,null,"Δpp[bar] ",{"$f":"IFERROR(I16+F5+D46+D48-E25,\"\")","v":""}]

{"sheet":"Indirekt mit FU je Pumpe","index":3,"n_rows":50,"n_cols":9,"rows_kept":50,"cut":false,"hidden":false,"merged":[[26,1,26,8],[0,2,0,5],[0,6,1,6],[0,7,1,8],[1,2,1,5],[37,3,37,5],[30,3,32,5],[37,1,37,2],[30,1,32,2],[33,1,33,2],[33,3,33,5],[34,1,34,2],[34,3,34,5],[35,1,35,2],[35,3,35,5],[36,1,36,2],[36,3,36,5]]}
[null,"Projekt",{"$f":"Q_Volumenstrom!C1","v":0},null,null,null,{"$f":"TODAY()","v":"2023-07-13"}]
[null,"Ort",{"$f":"Q_Volumenstrom!C2","v":0}]
[]
[null,"Anschlußart: Indirekt; alle Pumpen geregelt"]
[null,null,null,null,"pminFl[bar]"]
[]
[null,"pminFl[bar]","Mindestfließdruck an der Armatur, bei Mindestdurchfluß"]
[null,"pmax [bar]","Maximaler Vordruck (stat. Ruhedruck)"]
[null,"SPLN [bar]","Mindest-Versorgungsdruck"]
[null,"Hgeo[m]","Geo. Höhenunterschied "]
[null,"pvor[bar]","Fließdruck vor der Anlage bei QD"]
[]
[null,"QD [m3/h]",{"$f":"IF(Q_Volumenstrom!$D$4>0,Q_Volumenstrom!$D$4,Q_Volumenstrom!$E$40)","v":""},null,"pnach[bar]",{"$f":"IF(C50=\"\",\"\",C50)","v":""}]
[null,null,null,null,null,null,null,"Hgeo[m]"]
[null,null,null,null,null,null,null,"Δpe[bar]",{"$f":"IF(I14=\"\",\"\",(9.81*999.6*I14)/100000)","v":""}]
[]
[]
[null,null,null,null,null,null,null,null,"Hgeo,Zulauf [m]"]
[]
[null,null,null,null,null,null,null,null,"Δpgeo,Z[bar]"]
[null,null,null,null,null,null,null,null,{"$f":"IF(I19=\"\",\"\",(9.81*999.6*I19)/100000)","v":""}]
[]
[]
[null,"pmax [bar]",null,"pvor [bar]",null,null,"VB[l]",{"$f":"IFERROR((C13*1000)*0.03,\"\")","v":""}]
[null,"SPLN [bar]",null,{"$f":"IF(C24>=5,\"Druckminderer einplanen\",\"\")","v":""},null,null,"Benötigtes Nutzvolumen Vorlagebehälter 3% von QD"]
[]
[null,"Bei Vordrücken größer 5 bar muß ein Druckminderer vorgesehen werden. Die Nachspeisearmatur muß so gewählt werden, das QD bei pFL nachgespeist werden kann.Das Mindestbehältervolumen ist 3% von QD.Sonst muß die Differenz aus Nachspeisemenge und QD bevoratet werden.Vordruck plus Nullförderhöhe der Pumpe darf 16 bar nicht übersteigen."]
[null,"Nach DIN 1988- 500"]
[null,"Überschlägige Ermittlung der Druckverluste von Rohrleitungen und Armaturen"]
[]
[null,"Rohrleitungslänge Druckerhöhungsanlage bis hydraulische ungünstigster Entnahmestelle",null,"Mittleres Druckgefälle der Verbrauchsleitung"]
[]
[]
[null,"Σlnach",null,"Δp/l = (l*R+Z)nach/Σlnach"]
[null," [m]",null," [hpa/m]"]
[null,"≤ 30",null,20]
[null,"> 30 ≤80",null,15]
[null,"> 80",null,10]
[]
[null,null,"l [m]"]
[]
[null,null,"pVR+VA [bar]",{"$f":"IF(D40<=30,D36,IF(D40<=80,D37,IF(D40>80,D38)))*D40/1000","v":0},"Druckverlust der Rohrleitungen und Armaturen"]
[]
[null,null,"∆pApparate[bar]"]
[]
[null,"Einschaltdruck (der DEA)",null,null,null,"Förderdruck (der DEA Pumpen)"]
[]
[null,"pnach[bar]=Δpe+pminFL+pvr+var+∆pApparate",null,null,null,"Δpp[bar]=Δpe+pminFL+pvr+var+∆pApparate-pgeo;Z"]
[]
[null,"pnach [bar]",{"$f":"IFERROR(I15+F5+D42+D44,\"\")","v":""},null,null,"Δpp[bar] ",{"$f":"IFERROR(I15+F5+D42+D44-I21,\"\")","v":""}]

{"sheet":"Indirekt-Kaskade ohne FU","index":4,"n_rows":50,"n_cols":9,"rows_kept":50,"cut":false,"hidden":false,"merged":[[37,1,37,2],[37,3,37,5],[26,1,26,8],[30,1,32,2],[30,3,32,5],[33,1,33,2],[33,3,33,5],[34,1,34,2],[34,3,34,5],[35,1,35,2],[35,3,35,5],[0,2,0,5],[0,6,1,6],[0,7,1,8],[1,2,1,5],[36,1,36,2],[36,3,36,5]]}
[null,"Projekt",{"$f":"Q_Volumenstrom!C1","v":0},null,null,null,{"$f":"TODAY()","v":"2023-07-13"}]
[null,"Ort",{"$f":"Q_Volumenstrom!C2","v":0}]
[]
[null,"Anschlußart: Indirekt; ungeregelte Pumpen (Kaskadensteuerung)"]
[null,null,null,null,"pminFl[bar]"]
[]
[null,"pminFl[bar]","Mindestfließdruck an der Armatur, bei Mindestdurchfluß"]
[null,"pmax [bar]","Maximaler Vordruck (stat. Ruhedruck)"]
[null,"SPLN [bar]","Mindest-Versorgungsdruck"]
[null,"Hgeo[m]","Geo. Höhenunterschied "]
[null,"pvor[bar]","Fließdruck vor der Anlage bei QD"]
[null,null,null,null,"pnach[bar]",{"$f":"IF(C50=\"\",\"\",C50)","v":""}]
[null,"QD [m3/h]",{"$f":"IF(Q_Volumenstrom!$D$4>0,Q_Volumenstrom!$D$4,Q_Volumenstrom!$E$40)","v":""}]
[null,null,null,null,null,null,null,"Hgeo[m]"]
[null,null,null,null,null,null,null,"Δpe[bar]",{"$f":"IF(I14=\"\",\"\",(9.81*999.6*I14)/100000)","v":""}]
[]
[]
[null,null,null,null,null,null,null,null,"Hgeo,Zulauf [m]"]
[]
[null,null,null,null,null,null,null,null,"Δpgeo,Z[bar]"]
[null,null,null,null,null,null,null,null,{"$f":"IF(I19=\"\",\"\",(9.81*999.6*I19)/100000)","v":""}]
[]
[]
[null,"pmax [bar]",null,"pvor [bar]",null,null,"VB[l]",{"$f":"IFERROR(($C$13*1000)*0.03,\"\")","v":""}]
[null,"SPLN [bar]",null,{"$f":"IF(C24>=5,\"Druckminderer einplanen\",\"\")","v":""},null,null,"Benötigtes Nutzvolumen Vorlagebehälter 3% von QD"]
[]
[null,"Bei Vordrücken größer 5 bar muß ein Druckminderer vorgesehen werden. Die Nachspeisearmatur muß so gewählt werden, das QD bei pFL nachgespeist werden kann.Das Mindestbehältervolumen ist 3% von QD.Sonst muß die Differenz aus Nachspeisemenge und QD bevoratet werden.Vordruck plus Nullförderhöhe der Pumpe darf 16 bar nicht übersteigen."]
[null,"Nach DIN 1988- 500"]
[null,"Überschlägige Ermittlung der Druckverluste von Rohrleitungen und Armaturen"]
[]
[null,"Rohrleitungslänge Druckerhöhungsanlage bis hydraulische ungünstigster Entnahmestelle",null,"Mittleres Druckgefälle der Verbrauchsleitung"]
[]
[]
[null,"Σlnach",null,"Δp/l = (l*R+Z)nach/Σlnach"]
[null," [m]",null," [hpa/m]"]
[null,"≤ 30",null,20]
[null,"> 30 ≤80",null,15]
[null,"> 80",null,10]
[]
[null,null,"l [m]"]
[]
[null,null,"pVR+VA [bar]",{"$f":"IF(D40<=30,D36,IF(D40<=80,D37,IF(D40>80,D38)))*D40/1000","v":0},"Druckverlust der Rohrleitungen und Armaturen"]
[]
[null,null,"∆pApparate[bar]"]
[]
[null,"Einschaltdruck (der DEA)",null,null,null,"Förderdruck (der DEA Pumpen)"]
[]
[null,"pnach[bar]=Δpe+pminFL+pvr+var+∆pApparate",null,null,null,"Δpp[bar]=Δpe+pminFL+pvr+var+∆pApparate-pgeo;Z"]
[]
[null,"pnach [bar]",{"$f":"IFERROR(I15+F5+D42+D44,\"\")","v":""},null,null,"Δpp[bar] ",{"$f":"IFERROR(I15+F5+D42+D44-I21,\"\")","v":""}]

{"sheet":"Nachspeiseventil-Vorlagebehälte","index":5,"n_rows":71,"n_cols":23,"rows_kept":71,"cut":false,"hidden":false,"merged":[[70,12,70,13],[70,14,70,15],[70,19,70,21],[68,12,68,13],[68,14,68,15],[68,19,68,21],[69,12,69,13],[69,14,69,15],[69,19,69,21],[66,12,66,13],[66,14,66,15],[66,19,66,21],[67,12,67,13],[67,14,67,15],[67,19,67,21],[64,12,64,13],[64,14,64,15],[64,19,64,21],[65,12,65,13],[65,14,65,15],[65,19,65,21],[62,12,62,13],[62,14,62,15],[62,19,62,21],[63,12,63,13],[63,14,63,15],[63,19,63,21],[60,12,60,13],[60,14,60,15],[61,12,61,13],[61,14,61,15],[61,19,61,21],[64,1,64,2],[64,3,64,4],[64,7,64,8],[65,1,65,2],[65,3,65,4],[65,7,65,8],[63,1,63,2],[62,1,62,2],[62,3,62,4],[62,7,62,8],[61,1,61,2],[61,3,61,4],[61,7,61,8],[63,3,63,4],[63,7,63,8],[60,1,60,2],[60,3,60,4],[60,7,60,8],[58,1,58,2],[58,3,58,4],[58,7,58,8],[59,1,59,2],[59,3,59,4],[59,7,59,8],[56,1,56,2],[56,3,56,4],[56,7,56,8],[57,1,57,2],[57,3,57,4],[57,7,57,8],[55,1,55,2],[55,3,55,4],[55,7,55,8],[0,2,0,5],[0,6,1,6],[0,7,1,8],[1,2,1,5],[28,1,29,3]]}
[null,"Projekt",null,null,null,null,{"$f":"TODAY()","v":"2023-07-13"}]
[null,"Ort"]
[]
[null,"Spitzenvolumenstrom inkl. Dauerabfluß"]
[null,null,"QD [m3/h]"]
[]
[]
[null,"Ermittlung des KSB Nachspeiseventils und des Vorbehälters"]
[]
[null,"pmax [bar] Maximaler Vordruck  (stat. Ruhedruck)"]
[null,"SPLN [bar] Mindest-Versorgungsdruck"]
[null,"pvor [bar] Fließdruck am Ventil bei QD"]
[null,"VB [l] benötigtes Nutzvolumen 3% von QD"]
[null,"Q Zulaufventil  [m3/h] Nachspeisemeneg des Ventils bei pvor"]
[null,"V Behälter,gesamt [l] des Vorbehälters bei KSB passend zum Nachspeiseventil"]
[]
[null,"pmax [bar]",null,null,null,"pvor[bar]",{"$f":"IF(D38<0,\"\",D38)","v":""}]
[null,"SPLN [bar]"]
[]
[]
[]
[]
[]
[null,"pFL = pvor,min-∆pWasserzähler-∆pArmaturen-∆pFilter-∆pRohrleitung"]
[]
[null,null,null,"VB (l)",{"$f":"IF(D5=\"\",\"\",D5*0.03*1000)","v":""}]
[]
[]
[null,{"$f":"IF(C17>=5,\"Druckminderer einplanen der Vorduck darf 5 bar nicht übersteigen\",\"\")","v":""}]
[]
[null,{"$f":"IF(C38<0.5,\"Der Vorduck muss über 0,5 bar liegen\",\"\")","v":""}]
[]
[]
[null,"DN der Hausanschlussleitung mit maximal 2 m/s Fließgeschwindigkeit.",null,null,null,null,null,{"$f":"IF(D5=\"\",\"\",IF(D5<=W47,25,IF(D5<=W48,32,IF(D5<=W50,40,IF(D5<=W51,50,IF(D5<=W52,65,IF(D5<=W53,80,IF(D5<=W54,100,IF(D5<=W55,125,IF(D5<=W56,150,IF(D5<=W57,200,IF(D5<=352,250,IF(D5<=509,300)))))))))))))","v":""}]
[]
[null,"pvor = SPLN-∆pWasserzähler-∆pArmaturen-∆pFilter-∆pRohrleitung-∆pApparate"]
[]
[null,"pvor [bar]",{"$f":"IF(D38>0,D38,\"\")","v":""},{"$f":"IFERROR(C18-IF(D40>0,D40)-D44-D46-D48-D50-D42,\"\")","v":""}]
[]
[null,"∆pWasserzähler [bar]",null,null,"oder aus techn. Datenblättern Wasserzähler "]
[]
[null,"∆pApparate[bar]"]
[]
[null,"∆pWasserzähler [bar]",null,{"$f":"IF(H34=\"\",\"\",IF(H34=Q47,((D5/R47)^2),IF(H34=Q48,((D5/R48)^2),IF(H34=Q49,((D5/R49)^2),IF(H34=Q50,((D5/R50)^2)*(S50/1000),IF(H34=Q51,((D5/R51)^2)*(S51/1000),IF(H34=Q52,((D5/R52)^2)*(S52/1000),IF(H34=Q53,((D5/R53)^2)*(S53/1000),IF(H34<=Q54,((D5/R54)^2)*(S54/1000),IF(H34=Q55,((D5/R55)^2)*(S55/1000),\"Eingabe\"))))))))))","v":""}]
[]
[null,"∆pFilter [bar]",null,0.2,"vorbelegter Erfahrungswert",null,null,null,null,null,null,null,null,null,null,null,"DN","m3/h","hPa",null,null,"DN","m3/h"]
[null,null,null,null,null,null,null,null,null,null,null,null,null,null,null,null,25,3,1000,null,null,25,3.5]
[null,"∆pArmaturen [bar]",null,{"$f":"H48*((998.6/2)*4)/100000","v":0.19972000000000001},null,"Σζ Armaturen",null,10,null,null,null,null,null,null,null,null,32,7,1000,null,null,32,5.8]
[null,null,null,null,null,"Summe der Armaturen Zeta Werte",null,null,null,null,null,null,null,null,null,null,40,12,1000]
[null,"∆pRohrleitung [bar]",null,{"$f":"G50*150/10^5","v":1.4999999999999999E-2},null,"l [m]",10,null,null,null,null,null,null,null,null,null,50,20,600,null,null,40,9]
[null,null,null,null,null,"Länge der Rohrleitung",null,null,null,null,null,null,null,null,null,null,65,50,600,null,null,50,14]
[null,"Alle Berechnungen auf v = 2 m/s",null,null,null,null,null,null,null,null,null,null,null,null,null,null,80,80,600,null,null,65,24]
[null,null,null,null,null,null,null,null,null,null,null,null,null,null,null,null,100,120,600,null,null,80,36]
[null,"Behältergröße und Zulaufventilgöße KSB-Zubehör",null,null,null,null,null,null,null,null,null,null,null,null,null,null,150,300,600,null,null,100,57]
[null,null,null,null,null,null,null,null,null,null,null,null,null,null,null,null,200,500,600,null,null,125,88]
[null,"Gesamtvolumen VBehälter,gesamt  [l]",null,"Nutzvolumen                      VB [l]",null,"Zoll","Zulaufventil DN","QZulaufventil [m3/h] bei pFL",null,null,null,null,null,null,null,null,null,null,null,null,null,150,127]
[null,300,null,150,null,"1\"",25,{"$f":"IFERROR(SQRT($G$17)*S62,\"\")","v":""},null,null,null,null,null,null,null,null,null,null,null,null,null,200,226]
[null,600,null,300,null,"1 1/2\"",40,{"$f":"IFERROR(SQRT($G$17)*S63,\"\")","v":""},null,null,null,null,null,null,null,null,null,null,null,null,null,250,353]
[null,750,null,500,null,"1 1/2\"",40,"",null,null,null,null,null,null,null,null,null,null,null,null,null,300,509]
[null,850,null,600,null,"1 1/2\"",40,""]
[null,1500,null,800,null,"2 x 2\"","2x DN 50","",null,null,null,null,"Gesamtvolumen (l)",null,"Nutzvolumen (l)",null,"Zoll","DN","b","Nachspeisemenge bei QD*√PFL"]
[null,1800,null,1100,null,"2 x 2\"","2x DN 50","",null,null,null,null,300,null,150,null,"1\"",25,8,{"$f":"SQRT($G$17)*S62","v":{"$error":"#VALUE!"}}]
[null,2700,null,1500,null,"2 x 2\"","2x DN 50","",null,null,null,null,600,null,300,null,"1 1/2\"",40,14,{"$error":"#VALUE!"}]
[null,3200,null,2000,null,"2 x 2\"","2x DN 50","",null,null,null,null,750,null,500,null,"1 1/2\"",40,14,{"$error":"#VALUE!"}]
[null,2700,null,1500,null,null,80,"",null,null,null,null,850,null,600,null,"1 1/2\"",40,14,{"$error":"#VALUE!"}]
[null,3200,null,2000,null,null,100,"",null,null,null,null,1500,null,800,null,"2 x 2\"","2x DN 50",35,{"$error":"#VALUE!"}]
[null,null,null,null,null,null,null,null,null,null,null,null,1800,null,1100,null,"2 x 2\"","2x DN 50",35,{"$error":"#VALUE!"}]
[null,"Blau hinterlegt sind alle möglichen Kombinationen, bitte prüfen ob QZulaufventil  ≥ QD",null,null,null,null,null,null,null,null,null,null,2700,null,1500,null,"2 x 2\"","2x DN 50",35,{"$error":"#VALUE!"}]
[null,null,null,null,null,null,null,null,null,null,null,null,3200,null,2000,null,"2 x 2\"","2x DN 50",35,{"$error":"#VALUE!"}]
[null,null,null,null,null,null,null,null,null,null,null,null,2700,null,1500,null,null,"DN80",90,{"$error":"#VALUE!"}]
[null,null,null,null,null,null,null,null,null,null,null,null,3200,null,2000,null,null,"DN100",145,{"$error":"#VALUE!"}]

{"sheet":"Druckbehälter","index":6,"n_rows":218,"n_cols":13,"rows_kept":218,"cut":false,"hidden":false,"merged":[[60,1,60,2],[53,7,53,8],[53,3,53,4],[53,1,53,2],[28,1,29,3],[60,7,60,8],[60,3,60,4],[58,1,58,2],[58,3,58,4],[58,7,58,8],[59,1,59,2],[59,3,59,4],[59,7,59,8],[56,1,56,2],[56,3,56,4],[56,7,56,8],[167,2,167,3],[167,4,167,5],[167,9,167,11],[168,2,168,3],[168,4,168,5],[168,9,168,11],[171,2,171,3],[171,4,171,5],[171,9,171,11],[169,2,169,3],[169,4,169,5],[169,9,169,11],[170,2,170,3],[170,4,170,5],[170,9,170,11],[166,9,166,11],[62,1,62,2],[62,3,62,4],[62,7,62,8],[165,2,165,3],[165,4,165,5],[165,9,165,11],[164,9,164,11],[162,9,162,11],[163,9,163,11],[63,1,63,2],[63,3,63,4],[63,7,63,8],[166,2,166,3],[166,4,166,5],[61,1,61,2],[61,3,61,4],[61,7,61,8],[164,2,164,3],[164,4,164,5],[163,2,163,3],[163,4,163,5],[161,2,161,3],[161,4,161,5],[162,2,162,3],[162,4,162,5],[115,6,115,8],[102,6,102,8],[113,6,113,8],[0,2,0,5],[0,6,1,6],[0,7,1,8],[1,2,1,5],[57,1,57,2],[57,3,57,4],[57,7,57,8],[54,1,54,2],[54,3,54,4],[54,7,54,8],[55,1,55,2],[55,3,55,4],[55,7,55,8]]}
[null,"Projekt",null,null,null,null,{"$f":"TODAY()","v":"2023-07-13"}]
[null,"Ort"]
[]
[null,"Spitzenvolumenstrom inkl. Dauerabfluß"]
[null,null,"QD [m3/h]"]
[]
[]
[null,"Ermittlung des KSB Nachspeiseventils und des Vorbehälters"]
[]
[null,"pmax [bar] Maximaler Vordruck  (stat. Ruhedruck)"]
[null,"SPLN [bar] Mindest-Versorgungsdruck"]
[null,"pvor [bar] Fließdruck am Ventil bei QD"]
[null,"VB [l] benötigtes Nutzvolumen 3% von QD"]
[null,"Q Zulaufventil  [m3/h] Nachspeisemeneg des Ventils bei pvor"]
[null,"V Behälter,gesamt [l] des Vorbehälters bei KSB passend zum Nachspeiseventil"]
[]
[null,"pmax [bar]",4,null,null,"pvor[bar]",{"$f":"C38","v":""}]
[null,"SPLN [bar]",4]
[]
[]
[]
[]
[]
[null,"pFL = pvor,min-∆pWasserzähler-∆pArmaturen-∆pFilter-∆pRohrleitung"]
[]
[null,null,null,"VB (l)",{"$f":"IF(D5=\"\",\"\",D5*0.03*1000)","v":""}]
[]
[]
[null,{"$f":"IF(C17>=5,\"Druckminderer einplanen der Vorduck darf 5 bar nicht übersteigen\",\"\")","v":""}]
[]
[null,{"$f":"IF(C38<0.5,\"Der Vorduck muss über 0,5 bar liegen\",\"\")","v":""}]
[]
[]
[null,"DN der Hausanschlussleitung mit maximal 2 m/s Fließgeschwindigkeit.",null,null,null,null,null,{"$f":"IF(D5=\"\",\"\",IF(D5<=M148,25,IF(D5<=M149,32,IF(D5<=M151,40,IF(D5<=M152,50,IF(D5<=M153,65,IF(D5<=M154,80,IF(D5<=M155,100,IF(D5<=M156,125,IF(D5<=M157,150,IF(D5<=M158,200,IF(D5<=352,250,IF(D5<=509,300)))))))))))))","v":""}]
[]
[null,"pvor = SPLN-∆pWasserzähler-∆pArmaturen-∆pFilter-∆pRohrleitung"]
[]
[null,"pvor [bar]",{"$f":"IFERROR(C18-IF(D40>0,D40)-D42-D44-D46-D48,\"\")","v":""}]
[]
[null,"∆pWasserzähler [bar]",null,null,"oder aus techn. Datenblättern Wasserzähler"]
[]
[null,"∆pWasserzähler [bar]",null,{"$f":"IF(H34=\"\",\"\",IF(H34=G148,((D5/H148)^2),IF(H34=G149,((D5/H149)^2),IF(H34=G150,((D5/H150)^2),IF(H34=G151,((D5/H151)^2)*(I151/1000),IF(H34=G152,((D5/H152)^2)*(I152/1000),IF(H34=G153,((D5/H153)^2)*(I153/1000),IF(H34=G154,((D5/H154)^2)*(I154/1000),IF(H34<=G155,((D5/H155)^2)*(I155/1000),IF(H34=G156,((D5/H156)^2)*(I156/1000),\"Eingabe\"))))))))))","v":""}]
[]
[null,"∆pFilter [bar]",null,0.2,"vorbelegter Erfahrungswert"]
[]
[null,"∆pArmaturen [bar]",null,{"$f":"H46*((998.6/2)*4)/100000","v":0.19972000000000001},null,"Σζ Armaturen",null,10]
[null,null,null,null,null,"Summe der Armaturen Zeta Werte"]
[null,"∆pRohrleitung [bar]",null,{"$f":"G48*150/10^5","v":1.4999999999999999E-2},null,"l [m]",10]
[null,null,null,null,null,"Länge der Rohrleitung"]
[null,"Alle Berechnungen auf v = 2 m/s"]
[]
[null,"Behältergröße und Zulaufventilgöße KSB-Zubehör"]
[]
[null,"Gesamtvolumen VBehälter,gesamt  [l]",null,"Nutzvolumen                      VB [l]",null,"Zoll","Zulaufventil DN","QZulaufventil [m3/h] bei pFL"]
[null,300,null,150,null,"1\"",25,{"$f":"IFERROR(SQRT($G$17)*I163,\"\")","v":""}]
[null,600,null,300,null,"1 1/2\"",40,""]
[null,750,null,500,null,"1 1/2\"",40,""]
[null,850,null,600,null,"1 1/2\"",40,""]
[null,1500,null,800,null,"2 x 2\"","2x DN 50",""]
[null,1800,null,1100,null,"2 x 2\"","2x DN 50",""]
[null,2700,null,1500,null,"2 x 2\"","2x DN 50",""]
[null,3200,null,2000,null,"2 x 2\"","2x DN 50",""]
[null,2700,null,1500,null,null,80,""]
[null,3200,null,2000,null,null,100,""]
[]
[null,"Blau hinterlegt sind alle möglichen Kombinationen, bitte prüfen ob QZulaufventil  ≥ QD"]
[]
[]
[null,"Ermittlung der Druckbehältergröße nach der Anlage"]
[null,"a. Zur Begrenzung der Schalthäufiglkeit bei druckgesteureten Anlagen"]
[null,"b. Zur Speicherung der Mindestvorratsmenge Ve"]
[]
[]
[null,"a. Zur Begrenzung der Schalthäufigkeit bei druckgesteuereten Anlagen"]
[]
[null,null,null,"Ausschaltdruck paus[bar]"]
[]
[null,null,null,"Einschaltdruck pnach[bar]"]
[]
[]
[]
[]
[]
[]
[]
[]
[]
[]
[]
[]
[]
[]
[null,"Anzahl der Pumpen \"n\""]
[]
[null,"Elektr. Leistung der stärksten Pumpe [kW]"]
[]
[null,"Schalthäufigkeit \"s\" [1/h]",null,null,null,{"$f":"IF(F95<=0,\"\",IF(F95<=4,C178,IF(F95<=7.5,C179,IF(F95>7.5,C180,\"\"))))","v":""}]
[]
[]
[]
[]
[]
[null,"Vordruck im Gefäß pnach  - 0,5 [bar] = p0",null,null,"p0 [bar]",{"$f":"IF(F78=\"\",\"\",F78-0.5)","v":""},"oder 10% unter Einschaltdruck pnach"]
[]
[null,"Gesamtvolumen des Druckbehälters",null,null,"Vn [l]",{"$f":"IFERROR(((D5*0.33)*((F76+1)/((F76-F78)*F93*IF(F95<=D178,C178,IF(F95<=D179,C179,IF(F95>D180,C180,\"\")))))*1000),\"\")","v":""}]
[]
[]
[null,"b. Zur Speicherung einer Mindestvorratsmenge Ve"]
[]
[null,"Einschaltdruck pnach[bar]"]
[]
[null,"Ausschaltdruck paus[bar]"]
[]
[null,"Vordruck im Gefäß pnach  - 0,5 [bar] = p0",null,null,"p0 [bar]",{"$f":"IF(F110=\"\",\"\",F110-0.5)","v":""},"oder 10% unter Einschaltdruck pnach"]
[]
[null,"Ve Bevorratungsmenge [l]",null,null,null,null,"gewünschte Bevorratungsmenge eingeben"]
[]
[]
[]
[]
[]
[]
[null,"Gesamtvolumen [l]",null,null,"Vn [l]",{"$f":"IFERROR((((F110+1)*(F112+1))/((F114+1)*(F112-F110))*F116),\"\")","v":""}]
[]
[]
[]
[null,"Ermittlung der Druckbehältergröße vor der Anlage"]
[]
[null,"Mindest-Versorgungsdruck",null,null,"SPLN [bar]"]
[]
[null,"Vordruck im Gefäß pSPLN  - 0,5 [bar] = p0",null,null,"p0 [bar]",{"$f":"IF(F129=\"\",\"\",F129-0.5)","v":""}]
[]
[null,"Gesamtvolumen [l]",null,null,"Vn [l]",{"$f":"IF(D5=\"\",\"\",IF(D5<=C216,D216,IF(D5<=C217,D217,IF(D5>C218,D218,\"\"))))","v":""}]
[]
[]
[]
[]
[]
[]
[]
[]
[]
[]
[]
[]
[]
[null,null,null,null,null,null,"DN","m3/h","hPa",null,null,"DN","m3/h"]
[null,null,null,null,null,null,25,3,1000,null,null,25,3.5]
[null,null,null,null,null,null,32,7,1000,null,null,32,5.8]
[null,null,null,null,null,null,40,12,1000]
[null,null,null,null,null,null,50,20,600,null,null,40,9]
[null,null,null,null,null,null,65,50,600,null,null,50,14]
[null,null,null,null,null,null,80,80,600,null,null,65,24]
[null,null,null,null,null,null,100,120,600,null,null,80,36]
[null,null,null,null,null,null,150,300,600,null,null,100,57]
[null,null,null,null,null,null,200,500,600,null,null,125,88]
[null,null,null,null,null,null,null,null,null,null,null,150,127]
[null,null,null,null,null,null,null,null,null,null,null,200,226]
[null,null,null,null,null,null,null,null,null,null,null,250,353]
[null,null,null,null,null,null,null,null,null,null,null,300,509]
[]
[null,null,"Gesamtvolumen (l)",null,"Nutzvolumen (l)",null,"Zoll","DN","b","Nachspeisemenge bei QD*√PFL"]
[null,null,300,null,150,null,"1\"",25,8,{"$f":"SQRT($G$17)*I163","v":{"$error":"#VALUE!"}}]
[null,null,600,null,300,null,"1 1/2\"",40,14,{"$error":"#VALUE!"}]
[null,null,750,null,500,null,"1 1/2\"",40,14,{"$error":"#VALUE!"}]
[null,null,850,null,600,null,"1 1/2\"",40,14,{"$error":"#VALUE!"}]
[null,null,1500,null,800,null,"2 x 2\"","2x DN 50",35,{"$error":"#VALUE!"}]
[null,null,1800,null,1100,null,"2 x 2\"","2x DN 50",35,{"$error":"#VALUE!"}]
[null,null,2700,null,1500,null,"2 x 2\"","2x DN 50",35,{"$error":"#VALUE!"}]
[null,null,3200,null,2000,null,"2 x 2\"","2x DN 50",35,{"$error":"#VALUE!"}]
[null,null,2700,null,1500,null,null,"DN80",90,{"$error":"#VALUE!"}]
[null,null,3200,null,2000,null,null,"DN100",145,{"$error":"#VALUE!"}]
[]
[]
[]
[]
[null,null,"s 1/h","kW"]
[null,null,20,4]
[null,null,15,7.5]
[null,null,10,7.5]
[]
[]
[]
[]
[]
[]
[]
[]
[]
[]
[]
[]
[]
[]
[]
[]
[]
[]
[]
[]
[]
[]
[]
[]
[]
[]
[]
[]
[]
[]
[]
[]
[]
[]
[null,null,"QD","Vn"]
[null,"kleiner",7,300]
[null,"7 bis",15,500]
[null,"größer",15,750]